fUST/lending_fUST_20251020
["ID","MTS","AMOUNT","RATE_DAILY","PERIOD"]
[391845539,1760909444018,-155.542732,0.000319,30]
[391845540,1760909444028,-151.0,0.000319,30]
[391845541,1760909444038,-171.65406042,0.000319,120]
[391845542,1760909444048,-168.30486896,0.000319,120]
[391845543,1760909444059,-205.88724234,0.000319,120]
[391845544,1760909444069,-160.13210646,0.000319,120]
[391845545,1760909444079,-1000.0,0.000319,14]
[391845546,1760909444089,-33077.4989905,0.000319,2]
[391845547,1760909444098,-5000.0,0.00031902,3]
[391845548,1760909444109,-154.222616,0.0003192,15]
[391845549,1760909444119,-168.0,0.00031922,2]
[391845550,1760909444129,-695.6,0.00031944,15]
[391845551,1760909444138,-442.5,0.00031963,2]
[391845552,1760909444147,-250.0,0.00031972,2]
[391845553,1760909444157,-767.7842514,0.0003199,2]
[391845554,1760909444166,-160.0,0.00032,120]
[391845555,1760909444175,-695.6,0.00032044,15]
[391845556,1760909444184,-2246.98,0.000321,2]
[391845557,1760909444195,-2694.25,0.00032116,2]
[391845558,1760909444205,-168.0,0.00032138,2]
[391845559,1760909444215,-695.6,0.00032144,15]
[391845560,1760909444225,-1000.0,0.00032235,14]
[391845561,1760909444234,-695.6,0.00032244,15]
[391845562,1760909444243,-695.6,0.00032344,15]
[391845563,1760909444253,-695.6,0.00032444,15]
[391845564,1760909444262,-1983.0,0.00032493,2]
[391845565,1760909444271,-1455.0,0.00032525,2]
[391845566,1760909444281,-796.19226871,0.00032538,2]
[391845567,1760909444290,-154.222616,0.0003254,2]
[391845568,1760909444361,-156.506309,0.0003254,2]
[391845569,1760909444371,-695.6,0.00032544,15]
[391845570,1760909444380,-465.0,0.00032563,2]
[391845571,1760909444389,-1000.0,0.00032569,14]
[391845572,1760909444398,-695.6,0.00032644,15]
[391845573,1760909444407,-8405.0,0.0003272,2]
[391845574,1760909444416,-695.6,0.00032744,15]
[391845575,1760909444425,-151.0,0.00032839,30]
[391845576,1760909444434,-151.0,0.00032839,30]
[391845577,1760909444443,-695.6,0.00032844,15]
[391845578,1760909444453,-151.0,0.00032877,30]
[391845579,1760909444462,-151.0,0.00032877,30]
[391845580,1760909444471,-151.0,0.00032877,30]
[391845581,1760909444480,-151.0,0.00032877,30]
[391845582,1760909444489,-286.35,0.0003288,30]
[391845583,1760909444498,-167.040426,0.0003288,30]
[391845584,1760909444507,-167.040426,0.0003288,30]
[391845585,1760909444516,-167.040426,0.0003288,30]
[391845586,1760909444525,-204.23483277,0.0003288,30]
[391845587,1760909444539,-204.23,0.0003288,30]
[391845588,1760909444549,-158.84931438,0.0003288,30]
[391845589,1760909444558,-158.84931438,0.0003288,30]
[391845590,1760909444567,-158.84931438,0.0003288,30]
[391845591,1760909444577,-158.84931438,0.0003288,30]
[391845592,1760909444586,-183.5065391,0.0003288,30]
[391845593,1760909444595,-183.5065391,0.0003288,30]
[391845594,1760909444606,-183.5,0.0003288,30]
[391845595,1760909444615,-160.56822171,0.0003288,30]
[391845596,1760909444624,-160.56822171,0.0003288,30]
[391845597,1760909444633,-160.56822171,0.0003288,30]
[391845598,1760909444643,-160.56822171,0.0003288,30]
[391845599,1760909444652,-160.56822171,0.0003288,30]
[391845600,1760909444662,-160.56822171,0.0003288,30]
[391845601,1760909444671,-174.47334731,0.000329,120]
[391845602,1760909444680,-324.7217085,0.000329,120]
[391845603,1760909444689,-1484.77070193,0.000329,120]
[391845604,1760909444699,-2446.98188917,0.000329,120]
[391845605,1760909444708,-168.30486896,0.000329,120]
[391845606,1760909444717,-160.13210646,0.000329,120]
[391845607,1760909444726,-1000.0,0.00032904,14]
[391845608,1760909444736,-168.0,0.00032935,2]
[391845609,1760909444745,-695.6,0.00032944,60]
[391845610,1760909444754,-158.84931438,0.00032962,30]
[391845611,1760909444763,-1155.26722756,0.00033,2]
[391845612,1760909444772,-695.6,0.00033044,60]
[391845613,1760909444781,-825.65138265,0.00033086,2]
[391845614,1760909444791,-695.6,0.00033144,60]
[391845615,1760909444800,-487.5,0.00033163,2]
[391845616,1760909444810,-178.06395607,0.000332,117]
[391845617,1760909444819,-178.06395607,0.000332,117]
[391845618,1760909444828,-272.94405298,0.00033215,2]
[391845619,1760909444838,-1000.0,0.00033239,14]
[391845620,1760909444847,-690.43206773,0.00033239,4]
[391845621,1760909444856,-695.6,0.00033244,60]
[391845622,1760909444865,-160.56822171,0.00033246,30]
[391845623,1760909444874,-335.1489441,0.00033261,7]
[391845624,1760909444883,-5883.99,0.000333,14]
[391845625,1760909444892,-1313.37639179,0.00033341,2]
[391845626,1760909444902,-695.6,0.00033344,60]
[391845627,1760909444911,-3143.29,0.00033351,2]
[391845628,1760909444921,-200.0,0.000334,120]
[391845629,1760909444930,-982.0,0.00033438,2]
[391845630,1760909444939,-2161.0,0.00033438,2]
[391845631,1760909444948,-411.0,0.00033438,2]
[391845632,1760909444957,-1152.0,0.0003344,2]
[391845633,1760909444966,-695.6,0.00033444,60]
[391845634,1760909444976,-160.0,0.00033448,3]
[391845635,1760909444985,-51737.75,0.000335,14]
[391845636,1760909444994,-1842.94903,0.000335,30]
[391845637,1760909445003,-1842.94903,0.000335,30]
[391845638,1760909445012,-1842.94903,0.000335,30]
[391845639,1760909445022,-1842.94903,0.000335,30]
[391845640,1760909445031,-151.0,0.000335,30]
[391845641,1760909445040,-518.183096,0.000335,30]
[391845642,1760909445049,-518.183096,0.000335,30]
[391845643,1760909445058,-518.183096,0.000335,30]
[391845644,1760909445067,-518.183096,0.000335,30]
[391845645,1760909445077,-798.902424,0.000335,30]
[391845646,1760909445086,-207.834812,0.000335,30]
[391845647,1760909445095,-798.902424,0.000335,30]
[391845648,1760909445105,-207.834812,0.000335,30]
[391845649,1760909445114,-798.902424,0.000335,30]
[391845650,1760909445124,-207.834812,0.000335,30]
[391845651,1760909445133,-151.0,0.000335,30]
[391845652,1760909445142,-798.902424,0.000335,30]
[391845653,1760909445151,-207.834812,0.000335,30]
[391845654,1760909445160,-151.0,0.000335,30]
[391845655,1760909445169,-151.0,0.000335,30]
[391845656,1760909445178,-151.0,0.000335,30]
[391845657,1760909445188,-695.6,0.00033544,60]
[391845658,1760909445197,-1000.0,0.00033574,14]
[391845659,1760909445207,-1313.37639179,0.00033614,2]
[391845660,1760909445217,-695.6,0.00033644,60]
[391845661,1760909445226,-2246.98,0.000337,2]
[391845662,1760909445235,-695.6,0.00033744,60]
[391845663,1760909445244,-151.26708012,0.00033746,30]
[391845664,1760909445254,-1313.37639179,0.00033761,2]
[391845665,1760909445263,-154.222616,0.0003384,15]
[391845666,1760909445272,-695.6,0.00033844,60]
[391845667,1760909445281,-174.47334731,0.000339,120]
[391845668,1760909445291,-324.7217085,0.000339,120]
[391845669,1760909445300,-1484.77070193,0.000339,120]
[391845670,1760909445309,-2446.98188917,0.000339,120]
[391845671,1760909445318,-200.0,0.000339,120]
[391845672,1760909445327,-1000.0,0.00033908,14]
[391845673,1760909445337,-695.6,0.00033944,60]
[391845674,1760909445346,-500.0,0.00033973,7]
[391845675,1760909445355,-5146.77493648,0.00034,7]
[391845676,1760909445364,-1313.37639179,0.00034042,2]
[391845677,1760909445374,-695.6,0.00034044,60]
[391845678,1760909445383,-500.0,0.00034071,7]
[391845679,1760909445452,-167.04,0.00034099,30]
[391845680,1760909445462,-158.84,0.00034099,30]
[391845681,1760909445472,-160.56,0.00034099,30]
[391845682,1760909445482,-52181.97913693,0.00034099,2]
[391845683,1760909445492,-13567.74217089,0.00034099,2]
[391845684,1760909445502,-220.01086159,0.0003411,5]
[391845685,1760909445512,-151.54133477,0.00034116,2]
[391845686,1760909445522,-695.84911261,0.00034144,60]
[391845687,1760909445534,-151.0,0.00034184,30]
[391845688,1760909445547,-151.0,0.00034184,30]
[391845689,1760909445556,-151.0,0.00034184,30]
[391845690,1760909445566,-301.999999,0.00034184,30]
[391845691,1760909445576,-1842.94903,0.00034184,30]
[391845692,1760909445586,-1842.94903,0.00034184,30]
[391845693,1760909445595,-1842.94903,0.00034184,30]
[391845694,1760909445604,-1842.94903,0.00034184,30]
[391845695,1760909445613,-151.0,0.00034185,30]
[391845696,1760909445622,-402.86590842,0.00034198,2]
[391845697,1760909445631,-160.0,0.00034198,2]
[391845698,1760909445640,-417.15472785,0.00034198,2]
[391845699,1760909445650,-10000.0,0.00034199,2]
[391845700,1760909445659,-10000.0,0.00034199,2]
[391845701,1760909445669,-10000.0,0.00034199,2]
[391845702,1760909445678,-10000.0,0.00034199,2]
[391845703,1760909445687,-10000.0,0.00034199,2]
[391845704,1760909445697,-407.0,0.00034199,2]
[391845705,1760909445706,-10000.0,0.00034199,2]
[391845706,1760909445715,-10000.0,0.00034199,2]
[391845707,1760909445725,-10000.0,0.00034199,2]
[391845708,1760909445736,-151.0,0.00034199,30]
[391845709,1760909445745,-518.183096,0.00034199,30]
[391845710,1760909445754,-518.183096,0.00034199,30]
[391845711,1760909445764,-518.183096,0.00034199,30]
[391845712,1760909445774,-518.183102,0.00034199,30]
[391845713,1760909445784,-798.902424,0.00034199,30]
[391845714,1760909445794,-207.834812,0.00034199,30]
[391845715,1760909445803,-798.902424,0.00034199,30]
[391845716,1760909445813,-207.834812,0.00034199,30]
[391845717,1760909445822,-798.902424,0.00034199,30]
[391845718,1760909445832,-207.834812,0.00034199,30]
[391845719,1760909445841,-210.941372,0.00034199,30]
[391845720,1760909445851,-798.902428,0.00034199,30]
[391845721,1760909445859,-207.83482,0.00034199,30]
[391845722,1760909445869,-151.0,0.00034199,30]
[391845723,1760909445878,-151.0,0.00034199,30]
[391845724,1760909445888,-151.0,0.00034199,30]
[391845725,1760909445897,-206508.65937894,0.00034199,20]
[391845726,1760909445907,-2326.21178136,0.00034199,2]
[391845727,1760909445916,-2094.7,0.00034199,30]
[391845728,1760909445926,-150.0,0.00034199,2]
[391845729,1760909445936,-250.0,0.00034199,10]
[391845730,1760909445945,-250.0,0.00034199,10]
[391845731,1760909445954,-302.517825,0.00034199,10]
[391845732,1760909445963,-517294.60010818,0.00034199,20]
[391845734,1760909445972,-149.999999,0.00034199,14]
[391845736,1760909445982,-154.222616,0.000342,20]
[391845737,1760909445991,-154.222616,0.00034205,20]
[391845738,1760909446001,-500.0,0.00034211,7]
[391845739,1760909446011,-154.222616,0.00034211,20]
[391845740,1760909446020,-156.506309,0.00034211,20]
[391845741,1760909446029,-307.7706984,0.00034215,2]
[391845742,1760909446039,-74438.3760009,0.00034215,2]
[391845743,1760909446048,-1842.94903,0.00034215,30]
[391845744,1760909446057,-1842.94903,0.00034215,30]
[391845745,1760909446067,-1842.94903,0.00034215,30]
[391845746,1760909446075,-1842.949026,0.00034215,30]
[391845747,1760909446084,-5294.5024815,0.00034215,2]
[391845748,1760909446094,-2267.2238201,0.00034215,2]
[391845749,1760909446103,-154.222616,0.00034216,20]
[391845750,1760909446113,-156.506309,0.00034216,20]
[391845751,1760909446122,-154.222616,0.00034222,20]
[391845752,1760909446131,-156.506309,0.00034222,20]
[391845753,1760909446140,-437.82131396,0.00034243,14]
[391845754,1760909446149,-7000.0,0.00034246,2]
[391845755,1760909446158,-7000.0,0.00034246,2]
[391845756,1760909446168,-7000.0,0.00034246,2]
[391845757,1760909446178,-7000.0,0.00034246,2]
[391845758,1760909446188,-15000.0,0.0003425,30]
[391845759,1760909446197,-500.0,0.00034255,7]
[391845760,1760909446206,-4230.40787,0.0003426,60]
[391845761,1760909446216,-671.92,0.00034296,60]
[391845763,1760909446225,-154.222616,0.000343,30]
[391845764,1760909446234,-671.92,0.00034396,60]
[391845767,1760909446244,-671.92,0.00034496,60]
[391845770,1760909446254,-165.3186967,0.00034551,30]
[391845772,1760909446263,-3592.33,0.00034586,2]
[391845775,1760909446272,-671.92,0.00034596,60]
[391845776,1760909446281,-500.0,0.00034623,7]
[391845778,1760909446290,-502.61374463,0.00034657,7]
[391845780,1760909446299,-581.69573695,0.00034696,60]
[391845782,1760909446309,-671.96,0.00034696,60]
[391845784,1760909446318,-166.39,0.00034712,60]
[391845785,1760909446328,-200.0,0.00034799,120]
[391845786,1760909446337,-5883.99,0.000348,14]
[391845787,1760909446346,-166.39,0.00034812,60]
[391845788,1760909446356,-324.7217085,0.000349,120]
[391845789,1760909446366,-1484.77070193,0.000349,120]
[391845790,1760909446376,-2446.98188917,0.000349,120]
[391845791,1760909446385,-166.39,0.00034912,60]
[391845792,1760909446395,-502.33263446,0.0003492,7]
[391845793,1760909446404,-154.222616,0.00034937,30]
[391845794,1760909446414,-200.0,0.00034978,120]
[391845800,1760909446479,-1000.0,0.00035,120]
[391845802,1760909446488,-202.78095131,0.00035,2]
[391845804,1760909446497,-4025.82468415,0.00035,2]
[391845805,1760909446507,-166.39,0.00035012,60]
[391845808,1760909446516,-166.39,0.00035112,60]
[391845810,1760909446526,-2261.658925,0.00035152,2]
[391845811,1760909446540,-160.0,0.00035161,4]
[391845813,1760909446549,-166.39,0.00035212,60]
[391845815,1760909446559,-200.0,0.000353,120]
[391845817,1760909446568,-200.0,0.000353,120]
[391845819,1760909446578,-2246.98,0.000353,2]
[391845822,1760909446590,-166.39,0.00035312,60]
[391845824,1760909446600,-166.39,0.00035412,60]
[391845826,1760909446611,-200.0,0.00035437,120]
[391845827,1760909446620,-51737.75,0.000355,14]
[391845829,1760909446630,-151.0,0.000355,30]
[391845831,1760909446639,-151.0,0.000355,30]
[391845833,1760909446649,-500.0,0.00035506,13]
[391845835,1760909446659,-500.0,0.00035506,13]
[391845838,1760909446668,-166.39,0.00035512,60]
[391845839,1760909446678,-154.222616,0.00035574,30]
[391845841,1760909446687,-156.506309,0.00035574,30]
[391845843,1760909446696,-166.39,0.00035612,60]
[391845845,1760909446706,-4463.12,0.00035616,120]
[391845847,1760909446715,-166.39,0.00035712,60]
[391845849,1760909446724,-154.222616,0.0003576,15]
[391845851,1760909446733,-156.506309,0.0003576,15]
[391845853,1760909446743,-166.39,0.00035812,60]
[391845854,1760909446752,-2446.98188917,0.000359,120]
[391845856,1760909446760,-166.39,0.00035912,60]
[391845858,1760909446770,-1000.0,0.00036,120]
[391845860,1760909446779,-1641975.11201698,0.00036,5]
[391845879,1760909446952,-15942.76806546,0.00036,5]
[391845881,1760909446963,-1493.99116288,0.00036,5]
[391845883,1760909446974,-9099.199054,0.00036,5]
[391845885,1760909446989,-151.0,0.00032877,30]
[391845887,1760909446998,-369.0,0.00036,5]
[391845919,1760909447295,-2539.34,0.00024263,3]
[391845921,1760909447305,-151.0,0.00032877,30]
[391845923,1760909447315,-151.0,0.00032877,30]
[391845926,1760909447326,-151.0,0.00032877,30]
[391845927,1760909447336,-151.0,0.00032877,30]
[391845929,1760909447345,-151.0,0.000335,30]
[391845931,1760909447354,-151.007603,0.000335,30]
[391845933,1760909447363,-151.0,0.00034199,30]
[391845935,1760909447372,-4041.38,0.00035821,2]
[391845937,1760909447382,-60653.31412688,0.00036,5]
[391845939,1760909447392,-166.39,0.00036012,60]
[391845941,1760909447402,-151.0,0.000361,120]
[391845943,1760909447411,-166.39,0.00036112,60]
[391845945,1760909447420,-154.222616,0.00036211,30]
[391845947,1760909447430,-156.506309,0.00036211,30]
[391845949,1760909447439,-166.39,0.00036212,60]
[391845951,1760909447448,-5000.0,0.00036236,4]
[391845953,1760909447457,-248.0,0.00036257,2]
[391845955,1760909447467,-5883.99,0.000363,14]
[391845957,1760909447475,-166.39,0.00036312,60]
[391845959,1760909447485,-746.3460079,0.00036312,30]
[391845961,1760909447494,-392.6151505,0.00036312,30]
[391845963,1760909447503,-392.6151505,0.00036312,30]
[391845965,1760909447512,-166.39,0.00036412,60]
[391845967,1760909447521,-200.0,0.00036426,120]
[391845969,1760909447532,-411.0,0.00036438,2]
[391845970,1760909447542,-200.0,0.00036467,120]
[391845972,1760909447551,-542.29380752,0.000365,120]
[391845974,1760909447560,-166.39,0.00036512,60]
[391845976,1760909447569,-166.39,0.00036612,60]
[391845978,1760909447579,-200.0,0.00036614,120]
[391845980,1760909447588,-4000.0,0.000367,2]
[391845982,1760909447599,-4463.12,0.00036712,120]
[391845984,1760909447608,-76.66381321,0.00036712,60]
[391846020,1760909447940,-663.88094134,0.00025633,3]
[391846025,1760909447980,-2239.81929005,0.00025633,3]
[391846028,1760909447997,-2174.97976861,0.00025633,3]
[391846030,1760909448011,-178.06395607,0.000332,117]
[391846033,1760909448025,-13567.74217083,0.00036348,2]
[391846035,1760909448041,-89.72618679,0.00036712,60]
[391846038,1760909448054,-200.0,0.00036763,120]
[391846040,1760909448068,-200.0,0.00036767,120]
[391846043,1760909448082,-238.01295949,0.00036767,30]
[391846045,1760909448097,-342.15838936,0.00036789,60]
[391846048,1760909448117,-1025.68920009,0.00036789,60]
[391846080,1760909448415,300.0,0.000232,2]
[391846240,1760909457465,196.0,0.00018,2]
[391846241,1760909457563,196.0,0.00018001,2]
[391846242,1760909457750,196.0,0.00018002,2]
[391846243,1760909457870,300.0,0.000232,2]
[391846244,1760909457942,196.0,0.00018004,2]
[391846245,1760909458139,196.0,0.00018005,2]
[391846246,1760909458323,196.0,0.00018006,2]
[391846247,1760909458507,196.0,0.00018007,2]
[391846248,1760909458702,196.0,0.00018008,2]
[391846249,1760909458897,196.0,0.0001801,2]
[391846250,1760909459083,196.0,0.00018011,2]
[391846251,1760909459649,196.0,0.00018012,2]
[391846252,1760909459879,196.0,0.00018013,2]
[391846253,1760909460082,196.0,0.00018014,2]
[391846254,1760909460265,196.0,0.00018016,2]
[391846255,1760909460449,196.0,0.00018017,2]
[391846256,1760909460647,196.0,0.00018018,2]
[391846257,1760909460829,196.0,0.00018019,2]
[391846258,1760909461007,196.0,0.0001802,2]
[391846259,1760909461192,196.0,0.00018022,2]
[391846260,1760909461374,196.0,0.00018023,2]
[391846262,1760909461595,196.0,0.00018024,2]
[391846263,1760909461780,196.0,0.00018025,2]
[391846264,1760909461961,196.0,0.00018027,2]
[391846265,1760909462549,196.0,0.00018028,2]
[391846266,1760909462746,196.0,0.00018029,2]
[391846267,1760909462977,196.0,0.0001803,2]
[391846268,1760909463181,196.0,0.00018031,2]
[391846269,1760909463364,196.0,0.00018033,2]
[391846270,1760909463929,196.0,0.00018034,2]
[391846271,1760909464163,196.0,0.00018035,2]
[391846272,1760909464352,165.80045349,0.00018036,2]
[391846273,1760909464379,30.19954651,0.00018036,2]
[391846274,1760909464550,196.0,0.00018037,2]
[391846275,1760909464831,196.0,0.00018039,2]
[391846276,1760909464962,196.0,0.0001804,2]
[391846277,1760909465152,196.0,0.00018041,2]
[391846278,1760909465335,196.0,0.00018042,2]
[391846279,1760909465528,196.0,0.00018043,2]
[391846280,1760909465721,196.0,0.00018045,2]
[391846281,1760909465901,196.0,0.00018046,2]
[391846282,1760909466088,196.0,0.00018047,2]
[391846283,1760909466274,196.0,0.00018048,2]
[391846284,1760909466482,196.0,0.00018049,2]
[391846285,1760909466666,196.0,0.00018051,2]
[391846286,1760909466897,196.0,0.00018052,2]
[391846287,1760909467372,196.0,0.00018053,2]
[391846288,1760909467595,196.0,0.00018054,2]
[391846289,1760909467789,196.0,0.00018055,2]
[391846290,1760909467977,196.0,0.00018057,2]
[391846291,1760909468174,196.0,0.00018058,2]
[391846292,1760909468360,196.0,0.00018059,2]
[391846293,1760909468641,196.0,0.0001806,2]
[391846294,1760909468734,196.0,0.00018061,2]
[391846295,1760909468918,196.0,0.00018063,2]
[391846296,1760909469101,196.0,0.00018064,2]
[391846297,1760909469306,196.0,0.00018065,2]
[391846298,1760909469499,196.0,0.00018066,2]
[391846299,1760909469689,196.0,0.00018067,2]
[391846300,1760909469881,196.0,0.00018069,2]
[391846301,1760909469939,300.0,0.000232,2]
[391846302,1760909470071,196.0,0.0001807,2]
[391846303,1760909470283,196.0,0.00018071,2]
[391846304,1760909470449,196.0,0.00018072,2]
[391846305,1760909470644,196.0,0.00018073,2]
[391846306,1760909470826,196.0,0.00018075,2]
[391846307,1760909471016,196.0,0.00018076,2]
[391846308,1760909471204,196.0,0.00018077,2]
[391846309,1760909471385,196.0,0.00018078,2]
[391846310,1760909471575,196.0,0.0001808,2]
[391846311,1760909471757,196.0,0.00018081,2]
[391846312,1760909472271,196.0,0.00018082,2]
[391846313,1760909472503,196.0,0.00018083,2]
[391846314,1760909472685,196.0,0.00018084,2]
[391846315,1760909472884,196.0,0.00018086,2]
[391846316,1760909473065,196.0,0.00018087,2]
[391846317,1760909473285,196.0,0.00018088,2]
[391846318,1760909473486,196.0,0.00018089,2]
[391846319,1760909473664,196.0,0.0001809,2]
[391846320,1760909473862,196.0,0.00018092,2]
[391846321,1760909474043,196.0,0.00018093,2]
[391846322,1760909474224,196.0,0.00018094,2]
[391846323,1760909474448,196.0,0.00018095,2]
[391846324,1760909474676,65.81045349,0.00018096,2]
[391846325,1760909474701,130.18954651,0.00018096,2]
[391846326,1760909474905,196.0,0.00018098,2]
[391846327,1760909475134,196.0,0.00018099,2]
[391846328,1760909475329,261.93094106,0.000181,2]
[391846329,1760909482276,300.0,0.000232,2]
[391846331,1760909577150,196.0,0.00018,2]
[391846332,1760909577336,196.0,0.00018033,2]
[391846333,1760909577523,196.0,0.00018067,2]
[391846334,1760909577916,238.49654705,0.000181,2]
[391846335,1760909591287,191.86,0.0002107,2]
[391846336,1760909591734,383.73,0.00022073,2]
[391846337,1760909592155,575.59,0.00023076,2]
[391846338,1760909592556,767.45,0.00024079,2]
[391846339,1760909652709,1812.95319242,0.00024099,2]
[391846340,1760909668200,635.23766488,0.00024099,2]
[391846341,1760909669719,190.83,0.0002133,2]
[391846342,1760909670121,381.66,0.00022346,2]
[391846343,1760909670526,572.5,0.00023362,2]
[391846344,1760909674077,300.0,0.000241,2]
[391846345,1760909687778,150.0,0.00019298,2]
[391846346,1760909711117,663.867835,0.00023237,2]
[391846348,1760909743285,414.56764328,0.00024099,2]
[391846356,1760909853369,555.83295677,0.00024099,2]
[391846357,1760909881122,417.15472785,0.00024142,2]
[391846358,1760909890930,76.15894518,0.00024099,2]
[391846359,1760909890955,99.38643214,0.00024099,2]
[391846360,1760909912986,1208.63546162,0.00024099,2]
[391846361,1760910043803,486.3538372,0.00024099,2]
[391846363,1760910142777,8205.63426904,0.00023179,2]
[391846364,1760910142801,10000.01,0.00023179,2]
[391846365,1760910142822,10000.01,0.00023179,2]
[391846366,1760910142844,3591.72695136,0.00023179,2]
[391846367,1760910172997,805.75697442,0.00024099,2]
[391846368,1760910182314,744.316696,0.00013699,2]
[391846369,1760910182522,744.316696,0.00020187,2]
[391846371,1760910188279,182.91,0.00021076,2]
[391846372,1760910188699,365.83,0.00022079,2]
[391846373,1760910189106,548.74,0.00023083,2]
[391846374,1760910189545,731.66,0.00024086,2]
[391846376,1760910231502,175.54537732,0.00024099,2]
[391846377,1760910233912,425.55960755,0.00024099,2]
[391846387,1760910424419,372.36465658,0.00024099,2]
[391846389,1760910433333,537.17131628,0.00024099,2]
[391846391,1760910517432,774.11172449,0.00024142,2]
[391846392,1760910517455,1703.24827551,0.00024142,2]
[391846393,1760910567651,175.54537732,0.000241,2]
[391846394,1760910614622,325.81907449,0.000241,2]
[391846434,1760910631657,-300.0,0.00024161,2]
[391846436,1760910631666,-300.0,0.00024161,2]
[391846438,1760910631675,-300.0,0.00024161,2]
[391846440,1760910631685,-300.0,0.00024161,2]
[391846442,1760910631694,-150.0,0.00024162,2]
[391846444,1760910631703,-300.0,0.00024162,2]
[391846446,1760910631713,-1200.0,0.00024162,2]
[391846448,1760910631722,-178.48,0.00024163,2]
[391846450,1760910631730,-1904.51,0.00024163,3]
[391846452,1760910631739,-952.26,0.00024163,3]
[391846454,1760910631749,-476.13,0.00024163,3]
[391846457,1760910631758,-238.06,0.00024163,3]
[391846458,1760910631767,-714.21,0.00024163,3]
[391846459,1760910631776,-312.66,0.00024163,10]
[391846460,1760910631785,-545.85,0.00024163,10]
[391846461,1760910631794,-454.87,0.00024163,10]
[391846463,1760910631803,-272.52615056,0.00024172,2]
[391846465,1760910631812,-252.38017459,0.00024172,2]
[391846467,1760910631821,-243.46333508,0.00024172,2]
[391846470,1760910631830,-190.76830539,0.00024172,2]
[391846473,1760910631839,-500.0,0.00024172,2]
[391846476,1760910631848,-500.0,0.00024172,2]
[391846479,1760910631857,-500.0,0.00024172,2]
[391846482,1760910631866,-165.07709862,0.00024172,2]
[391846484,1760910631875,-386.40477834,0.00024172,2]
[391846486,1760910631884,-622.22344064,0.00024172,2]
[391846488,1760910631893,-500.0,0.00024172,2]
[391846490,1760910631902,-500.0,0.00024172,2]
[391846492,1760910631911,-500.0,0.00024172,2]
[391846493,1760910631919,-455.94984854,0.00024172,2]
[391846494,1760910631928,-500.0,0.00024172,2]
[391846496,1760910631937,-302.55330211,0.00024172,2]
[391846498,1760910631947,-382.80299065,0.00024172,2]
[391846500,1760910631956,-500.0,0.00024172,2]
[391846502,1760910631965,-500.0,0.00024172,2]
[391846504,1760910631974,-500.0,0.00024172,2]
[391846506,1760910631983,-500.0,0.00024172,2]
[391846508,1760910631993,-500.0,0.00024172,2]
[391846510,1760910632001,-500.0,0.00024172,2]
[391846512,1760910632011,-500.0,0.00024172,2]
[391846514,1760910632020,-490.89433472,0.00024172,2]
[391846516,1760910632030,-500.0,0.00024172,2]
[391846518,1760910632039,-161213.77416351,0.00024173,2]
[391846520,1760910632050,-966.91527796,0.00024173,2]